fUSD/lending_fUSD_20250806
["ID","MTS","AMOUNT","RATE_DAILY","PERIOD"]
[377567780,1754443774469,-343.52021316,0.00018,2]
[377567783,1754443778606,-194.31927988,0.00018,2]
[377567784,1754443779046,799.37956675,0.000189,120]
[377567785,1754443781695,-390.28821801,0.00018,2]
[377567786,1754443784176,-346.69078199,0.00018,2]
[377567787,1754443788111,-245.63496798,0.00018,2]
[377567791,1754443794484,-267.81927572,0.00018,2]
[377567792,1754443797314,-151.0,0.00018,2]
[377567793,1754443800244,-399.44149282,0.00018,2]
[377567794,1754443803492,-213.72965048,0.000179,2]
[377567795,1754443806637,-158.94290462,0.000179,2]
[377567796,1754443810512,-189.8720301,0.000179,2]
[377567797,1754443810540,-60.72805288,0.00017999,2]
[377567798,1754443814225,-237.27194712,0.00017999,2]
[377567799,1754443814458,-112.24536619,0.00017999,2]
[377567801,1754443816065,-293.34113935,0.00017999,2]
[377567802,1754443819489,-250.0,0.00017999,2]
[377567803,1754443825282,-56.41349446,0.00017999,2]
[377567804,1754443825306,-100.1279699,0.00017999,2]
[377567805,1754443827223,-50.69188595,0.00017999,2]
[377567806,1754443827248,-198.27987067,0.00017999,2]
[377567807,1754443827270,-25.80274608,0.00017999,2]
[377567808,1754443830162,-267.79926152,0.00017999,2]
[377567809,1754443831785,-128.53710487,0.00017999,2]
[377567810,1754443831808,-78.65833707,0.00018,2]
[377567819,1754443832374,-4062.32862844,0.00018,2]
[377567830,1754443833820,-250.23079384,0.00018,2]
[377567836,1754443837951,-147414.34546676,0.00018,2]
[377567837,1754443837961,-34083.1443679,0.00018,2]
[377567838,1754443837974,-7931.4790337,0.00018,2]
[377567839,1754443837988,-250.0,0.0001845,2]
[377567840,1754443838002,-4401.24156478,0.000187,2]
[377567841,1754443838012,-166.66666666,0.00018899,2]
[377567842,1754443838024,-161.512538,0.000189,2]
[377567843,1754443838037,-1700.13145021,0.000189,2]
[377567844,1754443838049,-185.11325214,0.000189,2]
[377567845,1754443838062,-500.0,0.00018973,2]
[377567846,1754443838075,-242.65,0.0001899,2]
[377567847,1754443838089,-598.0,0.00018999,2]
[377567848,1754443838100,-1200.0,0.00018999,2]
[377567849,1754443838112,-5296305.61806062,0.00019,2]
[377567850,1754443838212,-666.0,0.00019,2]
[377567955,1754443840144,-2115243.93844418,0.00019,2]
[377567956,1754443840156,-983199.98646919,0.00019,2]
[377567959,1754443840865,-152.02738799,0.00019,2]
[377567960,1754443840896,-1176.0,0.00019,2]
[377567976,1754443843104,-7369.4431843,0.00019,2]
[377567987,1754443846674,-1208.0951139,0.00019,2]
[377567988,1754443846805,-347.14482896,0.00019,2]
[377567989,1754443856352,400.0,0.000184,6]
[377567990,1754443858437,800.0,0.000185,6]
[377567991,1754443860720,1300.0,0.000186,6]
[377567992,1754443862823,1700.0,0.000187,6]
[377567993,1754443865175,2200.0,0.000188,6]
[377567994,1754443867276,400.0,0.000189,6]
[377567995,1754443916308,316.659,0.00018894,4]
[377567996,1754443924276,1282.31,0.00029668,120]
[377567998,1754443941122,668.69932726,0.0003,120]
[377568000,1754443993168,-790.085,0.0001862,2]
[377568001,1754443993191,-171.998,0.0001862,2]
[377568002,1754443993215,-164.15564548,0.000189,2]
[377568003,1754443993238,-856.12878481,0.000189,2]
[377568004,1754443993260,-185.51222635,0.000189,2]
[377568005,1754443993282,-500.0,0.00018973,2]
[377568006,1754443993307,-406.0,0.00018999,2]
[377568007,1754443993330,-295.49737873,0.00018999,2]
[377568008,1754443993355,-478.25145132,0.00018999,2]
[377568009,1754443993377,-5552.79371331,0.00019,2]
[377568010,1754444020576,281.04,0.00029686,120]
[377568011,1754444117024,300.0,0.000184,6]
[377568012,1754444119127,600.0,0.000185,6]
[377568013,1754444121248,900.0,0.000186,6]
[377568014,1754444123451,237.42995518,0.000189,3]
[377568015,1754444123482,1200.0,0.000187,6]
[377568016,1754444125455,1500.0,0.000188,6]
[377568017,1754444127568,300.0,0.000189,6]
[377568019,1754444203080,211.6,0.00013699,2]
[377568020,1754444282740,250.0,0.00015,2]
[377568021,1754444285950,-210.49882657,0.00017,2]
[377568022,1754444288649,-89.50117343,0.00017,2]
[377568023,1754444319820,369.98893153,0.0003,120]
[377568024,1754444346519,175.0,0.00019871,7]
[377568025,1754444358224,970.75,0.00015068,2]
[377568026,1754444361172,-231.51671996,0.00016754,2]
[377568027,1754444362292,-301.7641245,0.00016754,2]
[377568028,1754444364384,-437.46915554,0.00016754,2]
[377568029,1754444364410,-30.3617881,0.00018439,2]
[377568030,1754444364858,246.65928769,0.0003,120]
[377568031,1754444366947,-303.34032758,0.00018439,2]
[377568032,1754444369144,-257.85460428,0.00018439,2]
[377568033,1754444391900,383.19870201,0.000301,120]
[377568034,1754444394059,-179.57507455,0.00018439,2]
[377568035,1754444396774,-199.61820549,0.00018439,2]
[377568036,1754444409819,164.43952512,0.0003,120]
[377568037,1754444454765,164.43952513,0.0003,120]
[377568039,1754444459779,-172.7255,0.00018,2]
[377568040,1754444461653,-209.45463102,0.00018,2]
[377568041,1754444470461,-165.31878186,0.00018,2]
[377568042,1754444472184,-152.63,0.00018,2]
[377568043,1754444487596,-224.82147692,0.00018,2]
[377568044,1754444540087,-223.30918047,0.00018,2]
[377568045,1754444542277,-190.29081953,0.00018,2]
[377568046,1754444570886,-82.9776102,0.00018,2]
[377568047,1754444570910,-249.32930286,0.0001822,2]
[377568048,1754444571966,-0.67069714,0.0001822,2]
[377568049,1754444683383,-239.83181144,0.00018,2]
[377568050,1754444686213,-389.98633907,0.00018,2]
[377568051,1754444688277,-238.11660939,0.00018,2]
[377568052,1754444691006,-399.02646269,0.00018,2]
[377568053,1754444694298,-283.92173359,0.00018,2]
[377568054,1754444695428,-384.03139387,0.00018,2]
[377568055,1754444697766,-315.96813843,0.00018,2]
[377568056,1754444700529,-231.75474407,0.00018,2]
[377568057,1754444702734,-179.8775,0.00018,2]
[377568058,1754444705995,-214.91345568,0.00018,2]
[377568059,1754444707695,-225.98226706,0.00018,2]
[377568060,1754444709275,-206.36357256,0.00018,2]
[377568061,1754444712498,-134.71597215,0.00018,2]
[377568062,1754444735420,-150.0,0.00017088,2]
[377568063,1754444735442,-39.63341843,0.00017088,2]
[377568064,1754444738157,-110.36658157,0.00017088,2]
[377568065,1754444738179,-150.0,0.00017088,2]
[377568066,1754444738202,-75.35340894,0.00017088,2]
[377568067,1754444743219,-79.35582513,0.00017088,2]
[377568068,1754444743241,-155.87469046,0.00017088,2]
[377568069,1754444743263,-21.73882524,0.00017088,2]
[377568070,1754444746185,-130.85106352,0.00017088,2]
[377568071,1754444746206,-122.24907552,0.00017088,2]
[377568072,1754444748523,-31.85397747,0.00017088,2]
[377568073,1754444748544,-150.79875526,0.00017088,2]
[377568074,1754444748567,-49.10904469,0.00017088,2]
[377568075,1754444754420,-116.9153296,0.00017088,2]
[377568076,1754444754443,-147.42010246,0.00017325,2]
[377568077,1754444757950,-2.57989754,0.00017325,2]
[377568078,1754444757979,-149.48010246,0.00017562,2]
[377568079,1754444760202,-0.51989754,0.00017562,2]
[377568080,1754444760226,-150.0,0.00017721,2]
[377568081,1754444760249,-0.48010246,0.000178,2]
[377568082,1754444761851,-149.51989754,0.000178,2]
[377568083,1754444761873,-150.0,0.00018037,2]
[377568084,1754444761897,-0.48010246,0.00018274,2]
[377568085,1754444763481,-149.51989754,0.00018274,2]
[377568086,1754444763506,-48.12175862,0.00018353,2]
[377568087,1754444771038,-151.89145589,0.00017206,2]
[377568088,1754444773858,-148.10854411,0.00017206,2]
[377568089,1754444773885,-101.87824138,0.00018353,2]
[377568090,1754444801403,-459.18791821,0.0001823,2]
[377568091,1754444803663,-171.38739838,0.0001823,2]
[377568092,1754444806355,-151.0,0.0001823,2]
[377568093,1754444808082,-167.85789792,0.0001823,2]
[377568094,1754444812268,-1199.42,0.0001823,2]
[377568095,1754444813937,-249.28080928,0.0001823,2]
[377568096,1754444815529,-273.94045152,0.0001823,2]
[377568097,1754444817864,-418.1634429,0.0001823,2]
[377568098,1754444821951,-258.0352963,0.0001823,2]
[377568099,1754444824964,-330.42355802,0.0001823,2]
[377568100,1754444827295,666.0,0.00018291,3]
[377568101,1754444827682,-202.78270021,0.0001823,2]
[377568102,1754444831112,-171.64685412,0.000182,2]
[377568103,1754444834191,-284.38427543,0.000182,2]
[377568104,1754444835462,-210.18261222,0.000182,2]
[377568105,1754444838103,-160.0,0.000182,2]
[377568106,1754444840799,-28.54857383,0.000182,2]
[377568107,1754444840824,-209.01745617,0.0001823,2]
[377568108,1754444845238,-154.08,0.0001823,2]
[377568109,1754444849504,-365.43938454,0.0001823,2]
[377568110,1754444851222,-281.03965652,0.0001823,2]
[377568111,1754444852876,-335.96100984,0.0001823,2]
[377568112,1754444857200,-377.73205475,0.0001823,2]
[377568113,1754444858920,-311.89742392,0.0001823,2]
[377568114,1754444864214,-175.12444043,0.0001823,2]
[377568115,1754444868576,-190.66288933,0.0001823,2]
[377568116,1754444870046,-190.77794525,0.0001823,2]
[377568117,1754444874040,-245.16974378,0.0001823,2]
[377568122,1754445001202,185.19241262,0.00014395,2]
[377568123,1754445001233,6.75758738,0.00014395,2]
[377568124,1754445002796,263.27028178,0.0002,4]
[377568129,1754445032135,-176.32,0.00017956,2]
[377568130,1754445032144,-300.0,0.00018229,2]
[377568131,1754445032154,-1200.0,0.00018229,2]
[377568132,1754445032164,-17181.61852273,0.0001823,2]
[377568133,1754445032173,-300.0,0.00018292,2]
[377568135,1754445032184,-200.0,0.00018354,2]
[377568136,1754445032194,-247.55500224,0.00018439,2]
[377568137,1754445032203,-150.0,0.00018512,2]
[377568138,1754445032213,-164.43952513,0.00018599,2]
[377568139,1754445032222,-166.66,0.00018623,2]
[377568140,1754445032231,-542.07,0.0001863,2]
[377568141,1754445032241,-468.71354695,0.000187,2]
[377568142,1754445032251,-784.34460234,0.00018705,2]
[377568143,1754445032261,-150.0,0.00018712,2]
[377568144,1754445032271,-150.0,0.00018749,2]
[377568145,1754445032280,-250.0,0.00018796,2]
[377568146,1754445032289,-300.0,0.00018796,2]
[377568147,1754445032298,-500.0,0.00018799,2]
[377568148,1754445032307,-854.86653924,0.000189,2]
[377568149,1754445032317,-161.49695317,0.000189,2]
[377568150,1754445032326,-359.05597062,0.000189,2]
[377568151,1754445032337,-158.15980875,0.000189,2]
[377568152,1754445032346,-820.94207558,0.000189,2]
[377568153,1754445032356,-162.93006408,0.000189,2]
[377568154,1754445032366,-552.80413744,0.000189,2]
[377568155,1754445032379,-40.07517486,0.000189,2]
[377568156,1754445032388,-356.51387681,0.000189,2]
[377568157,1754445032416,-1565.67122521,0.000189,2]
[377568158,1754445032461,-32138.83759,0.000189,2]
[377568159,1754445032473,-73011.66666006,0.000189,2]
[377568160,1754445032483,-1280.15113707,0.000189,2]
[377568161,1754445032492,-150.0,0.0001894,2]
[377568162,1754445032501,-500.0,0.00018973,2]
[377568163,1754445032512,-500.0,0.00018973,2]
[377568164,1754445032521,-500.0,0.00018973,2]
[377568165,1754445032531,-500.0,0.00018973,2]
[377568166,1754445032541,-422.87065793,0.00018973,2]
[377568167,1754445032555,-185.79816091,0.00018973,2]
[377568168,1754445032566,-314.20183909,0.00018973,2]
[377568169,1754445032576,-500.0,0.00018973,2]
[377568170,1754445032585,-500.0,0.00018973,2]
[377568171,1754445032594,-500.0,0.00018973,2]
[377568172,1754445032604,-500.0,0.00018973,2]
[377568173,1754445032613,-500.0,0.00018973,2]
[377568174,1754445032624,-500.0,0.00018973,2]
[377568175,1754445032634,-500.0,0.00018973,2]
[377568176,1754445032643,-365.73743741,0.00018981,2]
[377568177,1754445032654,-159.53898571,0.00018986,2]
[377568178,1754445032663,-247.04179766,0.00018986,2]
[377568179,1754445032673,-169.08297531,0.00018986,2]
[377568180,1754445032682,-864.63,0.00018987,2]
[377568181,1754445032692,-600.0,0.00018989,2]
[377568182,1754445032701,-500.0,0.00018989,2]
[377568183,1754445032711,-600.0,0.00018989,2]
[377568184,1754445032721,-600.0,0.00018989,2]
[377568185,1754445032731,-292.04740134,0.00018989,2]
[377568186,1754445032740,-600.0,0.00018989,2]
[377568187,1754445032750,-347.83757056,0.00018989,2]
[377568188,1754445032763,-151.0,0.00018989,2]
[377568189,1754445032773,-151.0,0.00018989,2]
[377568190,1754445032784,-151.0,0.00018989,2]
[377568191,1754445032794,-151.0,0.00018989,2]
[377568192,1754445032804,-151.0,0.00018989,2]
[377568193,1754445032815,-151.0,0.00018989,2]
[377568194,1754445032827,-151.0,0.00018989,2]
[377568195,1754445032837,-151.0,0.00018989,2]
[377568196,1754445032847,-151.0,0.00018989,2]
[377568197,1754445032856,-151.0,0.00018989,2]
[377568198,1754445032866,-608.04335372,0.00018989,2]
[377568199,1754445032881,-151.0,0.00018989,2]
[377568200,1754445032891,-214.21689529,0.0001899,2]
[377568201,1754445032901,-214.21689529,0.0001899,2]
[377568202,1754445032911,-1000.0,0.00018999,2]
[377568203,1754445032920,-1000.0,0.00018999,2]
[377568204,1754445032929,-898.233,0.00018999,2]
[377568205,1754445032939,-171.9998793,0.00018999,2]
[377568206,1754445032948,-2529.81640055,0.00019,2]
[377568207,1754445032960,-111100.562,0.00019,2]
[377568210,1754445033218,-200.0,0.00017956,2]
[377568211,1754445033228,-104407.77940498,0.00019,2]
[377568212,1754445033239,-741.13305979,0.00019,2]
[377568213,1754445033250,-35442.83505482,0.00019,2]
[377568214,1754445033268,-5620.04593571,0.00019,2]
[377568215,1754445033281,-3568.00000003,0.00019,2]
[377568216,1754445033314,-5963.6406155,0.00019,2]
[377568217,1754445033326,-1072.4999997,0.00019,2]
[377568218,1754445033337,-3516.7,0.00019,2]
[377568224,1754445038118,-206.84816511,0.00018899,2]
[377568225,1754445038128,-185.51222635,0.000189,2]
[377568226,1754445038137,-4505.77203956,0.00019,2]
[377568227,1754445038148,-464.63445043,0.00019,2]
[377568228,1754445038201,-70769.4493803,0.00019,2]
[377568229,1754445038219,-1071.10830085,0.00019,2]
[377568230,1754445038256,-335.99999998,0.00019,2]
[377568231,1754445038282,-396.53899997,0.00019,2]
[377568232,1754445038294,-704.27,0.00019,2]
[377568233,1754445038380,-6260336.84501516,0.00019,2]
[377568234,1754445038390,-2200.98325901,0.00019,2]
[377568235,1754445038399,-842.65,0.00019034,2]
[377568236,1754445038408,-500.0,0.00019044,2]
[377568237,1754445038417,-2244.22,0.00019044,2]
[377568238,1754445038426,-155.64,0.00019178,2]
[377568239,1754445038435,-166.66,0.00019238,2]
[377568240,1754445038444,-4513.34,0.00019293,2]
[377568241,1754445038453,-984.73861251,0.00019521,2]
[377568242,1754445038463,-734.84700777,0.00019521,2]
[377568243,1754445038472,-1000.0,0.00019521,2]
[377568244,1754445038481,-1000.0,0.00019521,2]
[377568245,1754445038490,-1000.0,0.00019521,2]
[377568246,1754445038499,-1000.0,0.00019521,2]
[377568247,1754445038510,-809.68095355,0.00019521,2]
[377568248,1754445038519,-1003.42985702,0.00019521,2]
[377568249,1754445038528,-503.29882078,0.00019521,2]
[377568250,1754445038537,-503.52963522,0.00019521,2]
[377568251,1754445038546,-1000.0,0.00019521,2]
[377568252,1754445038555,-151.77,0.000198,2]
[377568253,1754445038564,-151.77,0.000198,2]
[377568254,1754445038573,-151.77,0.000198,2]
[377568255,1754445038583,-151.77,0.000198,2]
[377568256,1754445038592,-151.77,0.000198,2]
[377568257,1754445038601,-151.77,0.000198,2]
[377568258,1754445038611,-151.77,0.000198,2]
[377568259,1754445038620,-151.77,0.000198,2]
[377568260,1754445038629,-151.77,0.000198,2]
[377568261,1754445038639,-151.77,0.000198,2]
[377568262,1754445038649,-151.77,0.000198,2]
[377568263,1754445038658,-151.77,0.000198,2]
[377568264,1754445038667,-151.77,0.000198,2]
[377568265,1754445038676,-151.77,0.000198,2]
[377568266,1754445038685,-151.77,0.000198,2]
[377568267,1754445038695,-151.77,0.000198,2]
[377568268,1754445038704,-151.77,0.000198,2]
[377568269,1754445038714,-151.77,0.000198,2]
[377568270,1754445038723,-166.66,0.00019852,2]
[377568271,1754445038733,-1553.71,0.00019871,2]
[377568272,1754445038742,-420.0,0.00019886,2]
[377568273,1754445038751,-1249.0,0.00019983,2]
[377568274,1754445038760,-1267.34646117,0.0002,2]
[377568275,1754445038770,-1022.79990635,0.0002,2]
[377568276,1754445038779,-1347.06659627,0.0002,2]
[377568277,1754445038788,-547.69609743,0.0002,2]
[377568278,1754445038798,-250.0,0.00020052,2]
[377568279,1754445038807,-300.0,0.00020052,2]
[377568280,1754445038819,-250.0,0.00020054,2]
[377568281,1754445038828,-300.0,0.00020054,2]
[377568282,1754445038837,-1011.50898233,0.00020068,2]
[377568283,1754445038846,-1500.0,0.00020068,2]
[377568284,1754445038856,-1574.72641694,0.00020068,2]
[377568285,1754445038866,-1500.0,0.00020068,2]
[377568286,1754445038876,-1500.0,0.00020068,2]
[377568287,1754445038885,-970.75,0.00020125,2]
[377568288,1754445038897,-211.6,0.00020187,2]
[377568289,1754445038907,-166.66,0.00020467,2]
[377568290,1754445038918,-617.62490862,0.0002061,2]
[377568291,1754445038929,-500.0,0.0002061,2]
[377568292,1754445038939,-4569.30955477,0.0002061,2]
[377568293,1754445038949,-500.0,0.0002061,2]
[377568294,1754445038959,-500.0,0.0002061,2]
[377568295,1754445038968,-629.62379019,0.0002061,2]
[377568296,1754445038978,-2000.0,0.00020616,2]
[377568297,1754445038987,-508.67427428,0.00020616,2]
[377568298,1754445038996,-2000.0,0.00020616,2]
[377568299,1754445039006,-359.05597054,0.00020813,2]
[377568300,1754445039016,-176.32,0.00020949,2]
[377568301,1754445039026,-619.80520822,0.00021001,2]
[377568302,1754445039035,-381.26356961,0.00021001,2]
[377568303,1754445039045,-991.81,0.00021053,2]
[377568304,1754445039054,-166.66,0.00021082,2]
[377568305,1754445039063,-2500.0,0.00021164,2]
[377568306,1754445039073,-2500.0,0.00021164,2]
[377568307,1754445039083,-191.95,0.00021592,2]
[377568308,1754445039091,-587.0,0.00021692,2]
[377568309,1754445039101,-166.66,0.00021697,2]
[377568310,1754445039110,-3000.0,0.00021712,2]
[377568311,1754445039120,-2013.01047236,0.00021712,2]
[377568312,1754445039129,-970.75,0.0002181,2]
[377568313,1754445039139,-3500.0,0.0002226,2]
[377568314,1754445039148,-162.93006405,0.00022278,2]
[377568315,1754445039158,-1280.15113706,0.00022278,2]
[377568316,1754445039168,-359.05597054,0.00022727,2]
[377568317,1754445039178,-250.0,0.00022735,2]
[377568318,1754445039187,-4000.0,0.00022808,2]
[377568319,1754445039196,-1026.37860533,0.00023356,2]
[377568320,1754445039205,-970.75,0.00023495,2]
[377568321,1754445039214,-532.0,0.00023663,2]
[377568322,1754445039352,-165.0,0.00023781,11]
[377568323,1754445039439,-176.32,0.00023942,2]
[377568324,1754445039448,-165.4628065,0.000245,2]
[377568325,1754445039458,-165.4628065,0.000245,2]
[377568326,1754445039468,-165.4628065,0.000245,2]
[377568327,1754445039477,-165.4628065,0.000245,2]
[377568328,1754445039486,-165.4628065,0.000245,2]
[377568329,1754445039495,-165.4628065,0.000245,2]
[377568330,1754445039505,-165.4628065,0.000245,2]
[377568331,1754445039516,-165.4628065,0.000245,2]
[377568332,1754445039526,-165.4628065,0.000245,2]
[377568333,1754445039536,-158.15980875,0.0002453,2]
[377568334,1754445039545,-359.05597054,0.0002464,2]
[377568335,1754445039555,-155.64,0.00024658,2]
[377568336,1754445039564,-1000.0,0.00024699,2]
[377568337,1754445039574,-1530.0,0.000247,5]
[377568338,1754445039583,-399.78399511,0.00024773,2]
[377568339,1754445039592,-2702.96030979,0.000249,2]
[377568340,1754445039601,-225.0,0.00025104,2]
[377568341,1754445039611,-970.75,0.00025181,2]
[377568342,1754445039620,-605.97,0.00025396,2]
[377568343,1754445039629,-500.62249044,0.00025567,2]
[377568344,1754445039639,-162.93006405,0.00025656,2]
[377568345,1754445039648,-1280.15113706,0.00025656,2]
[377568346,1754445039658,-379.55,0.00025891,2]
[377568347,1754445039667,-2278.54,0.0002654,2]
[377568348,1754445039676,-359.05597054,0.00026554,2]
[377568349,1754445039686,-211.6,0.00026676,2]
[377568350,1754445039695,-225.0,0.00026687,2]
[377568351,1754445039705,-331.82,0.00026689,2]
[377568352,1754445039714,-970.75,0.00026866,2]
[377568353,1754445039723,-176.32,0.00026934,2]
[377568354,1754445039733,-3593.14,0.00027123,2]
[377568355,1754445039742,-379.55,0.00027186,2]
[377568356,1754445039752,-5000.0,0.00027205,2]
[377568357,1754445039762,-156.5,0.00027221,2]
[377568358,1754445039771,-514.0,0.0002723,2]
[377568359,1754445039780,-156.5,0.00027275,2]
[377568360,1754445039789,-156.5,0.0002733,2]
[377568361,1754445039798,-156.5,0.00027384,2]
[377568362,1754445039808,-590.74,0.00027397,2]
[377568363,1754445039820,-188.43660535,0.000274,2]
[377568364,1754445039829,-158.47445515,0.000274,2]
[377568365,1754445039839,-158.47445514,0.000274,2]
[377568366,1754445039848,-156.5,0.00027438,2]
[377568368,1754445039857,-156.5,0.00027493,2]
[377568369,1754445039868,-331.82,0.0002769,2]
[377568371,1754445039877,-161.49695315,0.00027756,2]
[377568372,1754445039887,-211.47411252,0.00028151,2]
[377568373,1754445039897,-457.32188848,0.00028151,2]
[377568374,1754445039906,-841.80510082,0.00028151,2]
[377568375,1754445039916,-26679.28,0.00028203,2]
[377568376,1754445039926,-225.0,0.00028271,2]
[377568377,1754445039936,-592.87931229,0.00028441,2]
[377568378,1754445039946,-359.05597054,0.00028467,2]
[377568379,1754445039956,-379.55,0.0002848,2]
[377568380,1754445039965,-970.75,0.00028551,2]
[377568381,1754445039974,-331.82,0.0002869,2]
[377568382,1754445039985,-590.74,0.00028767,2]
[377568383,1754445039995,-514.0,0.00028869,4]
[377568384,1754445040004,-162.93006405,0.00029034,2]
[377568385,1754445040016,-1280.15113706,0.00029034,2]
[377568386,1754445040025,-771.17,0.00029524,2]
[377568387,1754445040035,-235.77,0.00029535,2]
[377568388,1754445040044,-1000.0,0.00029552,2]
[377568389,1754445040054,-250.0,0.00029668,2]
[377568391,1754445040064,-331.82,0.00029691,2]
[377568393,1754445040074,-379.55,0.00029775,2]
[377568395,1754445040083,-225.0,0.00029854,3]
[377568397,1754445040093,-200.0,0.0003,2]
[377568399,1754445040103,-200.0,0.000301,2]
[377568401,1754445040113,-590.74,0.00030136,2]
[377568403,1754445040123,-155.64,0.00030137,2]
[377568405,1754445040132,-158.15980875,0.0003016,2]
[377568407,1754445040143,-189.11,0.00030216,2]
[377568408,1754445040152,-970.75,0.00030237,2]
[377568409,1754445040162,-200.0,0.000303,2]
[377568410,1754445040171,-359.05597054,0.00030381,15]
[377568411,1754445040181,-514.0,0.00030507,7]
[377568412,1754445040190,-331.82,0.00030692,2]
[377568413,1754445040200,-1000.0,0.00030699,2]
[377568414,1754445040209,-445.0,0.00030891,5]
[377568415,1754445040219,-152.0,0.00030919,3]
[377568416,1754445040228,-379.55,0.00031069,2]
[377568417,1754445040238,-225.0,0.00031437,3]
[377568418,1754445040247,-590.74,0.00031506,2]
[377568419,1754445040257,-218.41572031,0.00031686,2]
[377568420,1754445040270,-970.75,0.00031922,2]
[377568421,1754445040279,-162.98,0.00031938,2]
[377568422,1754445040288,-514.0,0.00032146,10]
[377568423,1754445040298,-359.05597054,0.00032294,15]
[377568424,1754445040308,-152.0,0.00032331,4]
[377568425,1754445040317,-162.93006405,0.00032412,2]
[377568426,1754445040326,-1280.15113706,0.00032412,2]
[377568427,1754445040335,-234.78,0.00032472,120]
[377568428,1754445040344,-590.74,0.00032876,2]
[377568429,1754445040354,-3806.48,0.000329,14]
[377568430,1754445040363,-1006.18,0.000329,7]
[377568431,1754445040373,-25537.7,0.000329,14]
[377568432,1754445040383,-3413.2945899,0.00033,2]
[377568433,1754445040392,-225.0,0.0003302,4]
[377568434,1754445040402,-211.6,0.00033165,2]
[377568435,1754445040411,-189.11,0.00033246,2]
[377568436,1754445040421,-1000.0,0.00033246,2]
[377568437,1754445040430,-1252.0,0.00033393,2]
[377568438,1754445040439,-3362.0,0.00033393,2]
[377568439,1754445040448,-809.0,0.00033393,2]
[377568440,1754445040459,-956.0,0.00033393,2]
[377568441,1754445040468,-1293.0,0.00033393,2]
[377568442,1754445040477,-564.0,0.00033393,2]
[377568443,1754445040486,-597.0,0.00033393,2]
[377568444,1754445040496,-958.0,0.00033393,2]
[377568445,1754445040505,-2024.0,0.00033393,2]
[377568446,1754445040516,-1170.0,0.00033393,2]
[377568447,1754445040526,-1652.0,0.00033393,2]
[377568448,1754445040535,-6115.697,0.00033393,2]
[377568449,1754445040545,-4184.303,0.00033393,2]
[377568451,1754445040554,-870.11,0.00033393,2]
[377568453,1754445040563,-281.04,0.00033397,120]
[377568455,1754445040572,-970.75,0.00033608,2]
[377568456,1754445040583,-152.0,0.00033743,5]
[377568457,1754445040592,-514.0,0.00033784,13]
[377568458,1754445040602,-952.3252409,0.00034,35]
[377568459,1754445040611,-200.0,0.00034,30]
[377568460,1754445040621,-2881.69866127,0.00034066,2]
[377568461,1754445040630,-25537.7,0.000341,14]
[377568462,1754445040640,-359.05597054,0.00034208,15]
[377568463,1754445040649,-590.74,0.00034246,2]
[377568464,1754445040658,-1006.18,0.000345,7]
[377568465,1754445040668,-504.36897901,0.00034564,5]
[377568466,1754445040678,-3806.48,0.000346,14]
[377568467,1754445040687,-225.0,0.00034604,5]
[377568468,1754445040697,-152.0,0.00034685,3]
[377568469,1754445040706,-2000.0,0.000348,2]
[377568470,1754445040716,-150.0,0.0003488,2]
[377568471,1754445040725,-993.39660075,0.0003488,2]
[377568472,1754445040734,-150.0,0.0003488,2]
[377568473,1754445040743,-253.93119845,0.0003488,2]